[Event "Polish Ekstraliga 2024"]
[Site "Walbrzych"]
[Date "2024.10.07"]
[Round "1.26"]
[White "Malek, Jan"]
[Black "Sernecki, Franciszek"]
[Result "1-0"]
[ECO "C18"]
[WhiteElo "2479"]
[BlackElo "2335"]
[Annotator "TA"]
[PlyCount "119"]
[EventDate "2024.10.05"]
[EventType "team-tourn"]
[EventCountry "POL"]
[SourceTitle "playchess.com"]
[Source "ChessBase"]
[SourceQuality "1"]
[WhiteTeam "Legnica"]
[BlackTeam "Sedziszow Malopolski"]
[TimeControl "40/5400+30:1800+30"]

{[%evp 15,119,8,4,-11,0,4,8,2,17,22,56,15,27,25,17,18,41,26,17,0,5,8,8,0,39,47,41,-33,-20,-43,0,-47,-42,-41,-37,-71,-64,-64,-71,-100,-20,-91,-80,-83,-20,-20,0,-19,0,0,0,0,0,-8,17,9,15,12,21,24,92,86,113,114,174,169,165,163,163,163,158,133,302,296,327,308,318,333,364,355,497,518,11181,11181,6157,450,6296,5956,5829,5435,29977,29978,29978,29978,29988,29989,29990,29989,29989,29983,29983,29984,29984,29985,29982,29983]} 1. e4 {[%emt 0:00:03]} e6 {[%emt 0:00:32]} 2. d4 {[%emt 0:00:05]} d5 {[%emt 0:00:04]} 3. Nc3 {[%emt 0:00:05]} Bb4 {[%emt 0:00:30]} 4. e5 {[%emt 0:00:05]} c5 {[%emt 0:01:11]} 5. a3 {[%emt 0:00:11]} Bxc3+ {[%emt 0:00:07]} 6. bxc3 {[%emt 0:00:04]} Qa5 {[%emt 0:00:46]} 7. Bd2 {[%emt 0:00:07]} Qa4 {[%emt 0:00:05]} 8. Qg4 {[%emt 0:00:41]} Kf8 {[%emt 0:03:20]} 9. h4 {[%emt 0:01:02]} Nc6 {[%emt 0:01:10]} 10. h5 {[%emt 0:00:09]} h6 {[%emt 0:00:59]} 11. Qd1 {[%emt 0:00:11] The position is equal.} Nge7 {[%emt 0:06:11]} 12. Nf3 {[%emt 0:01:24]} Ke8 {[%emt 0:03:26][%cal Rc5d4]} 13. Rh4 {[%emt 0:09:04]} c4 {[%emt 0:03:42]} 14. Rg4 {[%emt 0:08:56]} Rg8 {[%emt 0:01:42]} 15. Rf4 {[%emt 0:00:09]} Rf8 {[%emt 0:24:40]} 16. g3 {[%emt 0:07:48]} Bd7 {[%emt 0:04:05]} 17. Bh3 {[%emt 0:00:10]} Kd8 $1 {[%emt 0:07:02]} 18. Nh4 {[%emt 0:02:22]} Kc7 {[%emt 0:03:37]} 19. Qg4 {[%emt 0:14:05]} f5 {[%emt 0:02:30]} 20. exf6 {[%emt 0:05:48]} gxf6 {[%emt 0:00:47]} 21. Rf3 {[%emt 0:01:54]} (21. Qe2 $14) 21... Rg8 $15 {[%emt 0:10:45]} 22. Ng6 $1 {[%emt 0:00:48]} Rad8 {[%emt 0:10:01]} 23. Qh4 {[%emt 0:26:35]} (23. Bxh6 $2 e5 (23... Qxc2 24. Rc1 $16) 24. Qh4 Nxg6 25. hxg6 Bxh3 (25... Rxg6 26. Be3 $17) (25... Qxc2 26. Bxd7 Rxd7 27. Rc1 $15) 26. Qxh3 Rxg6 $19) (23. Rxf6 $11 e5 24. Qe2 (24. Qh4 Nxg6 25. hxg6 Bxh3 $15) 24... Bxh3 25. Nxe7 Nxe7 26. Qxe5+ Kd7 27. O-O-O Qxa3+ 28. Kb1) 23... Nxg6 {[%emt 0:01:12]} (23... Qxc2 $2 24. Nxe7 (24. Bxh6 $2 Nxg6 25. hxg6 Rxg6 $19) 24... Nxe7 25. Rxf6 $18 (25. Bxh6 e5 $18)) 24. hxg6 {[%emt 0:00:15]} Rxg6 {[%emt 0:02:01]} 25. Rxf6 {[%emt 0:03:39]} Rxf6 {[%emt 0:00:34]} 26. Qxf6 {[%emt 0:00:01]} Qxc2 {[%emt 0:00:45][%cal Oe6e5] Hoping for ...e5!} 27. Bg2 {[%emt 0:00:52][%cal Oa1c1]} h5 {[%emt 0:07:06]} (27... Qb2 $17 28. Rc1 Qxa3) 28. Bf3 {[%emt 0:01:55]} (28. Rc1 $11 Qd3 29. Bf4+ Kb6 30. Bf1) 28... Kc8 {[%emt 0:01:02]} 29. Rc1 {[%emt 0:01:25]} Qd3 {[%emt 0:00:55]} ({Better is} 29... Qa2 $17) 30. Be2 $11 {[%emt 0:02:36]} Qe4 {[%emt 0:00:46] [#] ...Qh1+ is the strong threat.} 31. Bf4 {[%emt 0:02:55]} Re8 {[%emt 0:01:48][%cal Bd8e8,Be8e6,Be6f6][%mdl 32]} 32. f3 {[%emt 0:00:07]} Qf5 {[%emt 0:00:45]} 33. Qxf5 {[%emt 0:00:50]} exf5 {[%emt 0:00:02]} 34. Kf2 {[%emt 0:00:15]} Re6 {[%emt 0:01:54]} 35. Rh1 {[%emt 0:03:07]} Be8 {[%emt 0:00:14]} 36. Bd1 {[%emt 0:02:52]} Bg6 {[%emt 0:01:27]} 37. g4 {[%emt 0:00:54]} fxg4 {[%emt 0:00:31]} (37... hxg4 $1 $11 38. fxg4 Kd7) 38. fxg4 $16 {[%emt 0:00:01]} Rf6 {[%emt 0:00:37] [#] White must now prevent ...Be4.} 39. Kg3 $1 {[%emt 0:00:23]} hxg4 {[%emt 0:00:32]} (39... Be4 $16 {was necessary.} 40. Rh2 (40. Rxh5 Ne7 $16) 40... Rg6 (40... hxg4 $2 41. Bxg4+ Bf5 42. Bg5 $18)) 40. Bxg4+ $18 {[%emt 0:00:00]} Bf5 {[%emt 0:00:00]} 41. Bg5 {[%emt 0:03:11]} Bxg4 {[%emt 0:08:15]} 42. Bxf6 {[%emt 0:00:16][%mdl 4096] Endgame. KRB-KBN} Bf5 {[%emt 0:02:01]} 43. Be5 {[%emt 0:04:54]} b6 $2 {[%emt 0:05:31] A mistake that costs the game.} (43... Be4 $16 {is a better defense.} 44. Rh8+ Kd7) 44. Rf1 {[%emt 0:01:00]} Be6 {[%emt 0:03:07]} 45. Rf6 {[%emt 0:00:32]} Kd7 {[%emt 0:00:47]} 46. Kf4 {[%emt 0:00:28]} Nd8 {[%emt 0:01:49]} 47. Rg6 {[%emt 0:01:10]} b5 {[%emt 0:03:11]} 48. Kg5 {[%emt 0:02:04]} a5 {[%emt 0:04:13]} (48... Nb7 $142 49. Bh2 Ke7 50. Rg7+ Bf7) 49. Rg7+ {[%emt 0:00:18]} Kc6 {[%emt 0:00:39]} 50. Rc7+ {[%emt 0:01:14]} Kb6 {[%emt 0:00:03]} 51. Kf6 {[%emt 0:00:17] Wards off Nf7. Threatens to win with Re7.} b4 {[%emt 0:01:13]} 52. axb4 {[%emt 0:00:28]} a4 {[%emt 0:01:16][%cal Ba5a4,Ba4a3][%mdl 32]} 53. Rg7 {[%emt 0:01:02] White mates.} Bf7 {[%emt 0:00:45]} 54. Ke7 {[%emt 0:02:05]} (54. Rxf7 $2 {is the wrong capture.} Nxf7 55. Bf4 (55. Kxf7 $2 {perishes.} a3 $19) 55... Nd6 $19 (55... a3 $2 56. Bc1 $19)) 54... Ne6 {[%emt 0:00:05]} 55. Rxf7 {[%emt 0:00:13]} Ng5 {[%emt 0:00:03]} 56. Rf6+ {[%emt 0:01:31]} Kb5 {[%emt 0:00:03]} 57. Bc7 {[%emt 0:00:18][%csl Gc7][%cal Rf6b6]} a3 {[%emt 0:00:09]} 58. Rb6+ {[%emt 0:00:05]} Ka4 {[%emt 0:00:01]} 59. Ra6+ {[%emt 0:00:09]} Kb3 {[%emt 0:00:02]} 60. b5 {[%emt 0:00:07] Weighted Error Value: White=0.10 (very precise) /Black=0.36.  Loses game:     	---       	Black=1      Mistake:       	White=3     	Black=5      Inaccurate:     	White=3     	Black=5      OK:         	White=17    	Black=5      Best:        	White=4     	Black=7      Strong:       	White=2     	Black=1} 1-0

[Event "Polish Ekstraliga 2024"]
[Site "Walbrzych"]
[Date "2024.10.07"]
[Round "1.27"]
[White "Toczek, Grzegorz"]
[Black "Kempinski, Robert"]
[Result "1/2-1/2"]
[ECO "A46"]
[WhiteElo "2267"]
[BlackElo "2566"]
[Annotator "TA"]
[PlyCount "81"]
[EventDate "2024.10.05"]
[EventType "team-tourn"]
[EventCountry "POL"]
[SourceTitle "playchess.com"]
[Source "ChessBase"]
[SourceQuality "1"]
[WhiteTeam "Sedziszow Malopolski"]
[BlackTeam "Legnica"]
[TimeControl "40/5400+30:1800+30"]

{[%evp 9,81,3,4,8,16,4,-4,-20,-14,-12,-19,-29,-18,-26,-27,-49,-37,-52,-44,-55,-25,-36,-47,-43,-34,-52,-18,-45,0,0,0,0,0,0,0,-19,-9,-121,-122,-148,-159,-159,-51,-135,-116,-263,-285,-35,0,0,0,0,30,20,31,0,29,22,41,51,61,12,24,0,0,0,0,0,0,0,0,0,0,0]} 1. d4 {[%emt 0:00:13]} Nf6 {[%emt 0:00:18]} 2. Nf3 {[%emt 0:00:08]} e6 {[%emt 0:00:41]} 3. Bg5 {[%emt 0:00:05]} h6 {[%emt 0:01:58]} 4. Bh4 {[%emt 0:00:04]} d6 {[%emt 0:01:18]} 5. Nbd2 {[%emt 0:00:36]} g5 {[%emt 0:01:00]} 6. Bg3 {[%emt 0:00:03]} Nh5 {[%emt 0:00:10]} 7. e3 {[%emt 0:04:18]} Bg7 {[%emt 0:02:02]} 8. Bb5+ {[%emt 0:05:41]} Bd7 {[%emt 0:06:04]} 9. Bxd7+ {[%emt 0:00:05]} Nxd7 {[%emt 0:00:47]} 10. Nf1 {[%emt 0:00:15]} f5 {[%emt 0:06:02]} 11. N3d2 {[%emt 0:00:37]} Ndf6 {[%emt 0:01:35]} 12. f3 {[%emt 0:00:14]} Nxg3 {[%emt 0:03:28]} 13. Nxg3 {[%emt 0:01:57]} h5 {[%emt 0:05:09]} 14. Qe2 {[%emt 0:02:47]} Qe7 {[%emt 0:04:34]} 15. O-O-O {[%emt 0:11:20]} h4 {[%emt 0:01:44]} 16. Ngf1 {[%emt 0:00:31]} O-O-O {[%emt 0:00:53]} 17. e4 {[%emt 0:04:10]} fxe4 {[%emt 0:04:06]} 18. Nxe4 {[%emt 0:01:08]} Nxe4 {[%emt 0:05:31]} 19. fxe4 {[%emt 0:10:23]} Qf6 {[%emt 0:08:59]} 20. Ne3 {[%emt 0:08:27]} Qf4 {[%emt 0:00:51]} 21. Qd3 {[%emt 0:00:03] aiming for Rdf1.} g4 {[%emt 0:02:05]} 22. Rdf1 {[%emt 0:13:16]} Qg5 {[%emt 0:02:17]} 23. Kd1 {[%emt 0:07:25]} (23. Kb1 $1 $11) 23... Bh6 $17 {[%emt 0:07:28]} 24. Ke2 {[%emt 0:05:27]} Qh5 {[%emt 0:01:10]} 25. Ke1 {[%emt 0:03:39]} Rhf8 {[%emt 0:05:57]} ({Black should play} 25... Rhg8 $17 {Hoping for ...Kb8.} 26. Rhg1 Kb8) 26. c3 {[%emt 0:01:35]} ({Better is} 26. Rxf8 $1 $15 Rxf8 27. Rf1) 26... Qg5 {[%emt 0:02:42]} 27. Ke2 {[%emt 0:02:13] [#]} (27. Nd1 $17 {was the only chance.}) 27... h3 $1 $19 {[%emt 0:03:32]} 28. g3 $2 {[%emt 0:02:53]} (28. gxh3 $19 gxh3 29. Rhg1 Qh5+ 30. Kd2) 28... Rf3 {[%emt 0:01:17]} 29. Rxf3 {[%emt 0:00:24]} gxf3+ {[%emt 0:00:08]} 30. Kf2 $1 {[%emt 0:00:08]} (30. Kxf3 $2 {is the wrong capture.} Qh5+ (30... Qxe3+ $2 31. Qxe3 Rf8+ 32. Ke2 $18) 31. g4 Qf7+ 32. Ke2 Qf4 $19) 30... Qg6 {[%emt 0:01:55] ...d5 would now be deadly.} 31. Rd1 {[%emt 0:00:40]} Kb8 {[%emt 0:02:59]} 32. d5 {[%emt 0:03:37]} Bxe3+ {[%emt 0:06:06]} 33. Qxe3 $11 {[%emt 0:00:04][%mdl 4096] Endgame. KQR-KQR} Rf8 {[%emt 0:00:17]} 34. dxe6 {[%emt 0:05:14]} Qxe6 {[%emt 0:00:08]} 35. Rd5 {[%emt 0:00:03]} (35. b3 $14 {was preferrable.}) 35... c6 $1 {[%emt 0:01:16] [#]} 36. Rf5 {[%emt 0:00:08]} Rxf5 {[%emt 0:01:37] The position is equal.} 37. exf5 {[%emt 0:01:08]} Qxf5 {[%emt 0:00:07]} 38. Qe7 {[%emt 0:04:37]} Kc8 {[%emt 0:04:03] Inhibits Qd8+.} 39. Qxd6 {[%emt 0:00:55]} Qc2+ {[%emt 0:00:12]} 40. Kxf3 {[%emt 0:00:00]} Qxh2 {[%emt 0:00:00]} 41. Qe6+ {[%emt 0:00:16] Weighted Error Value: White=0.26 (precise) /Black=0.12 (very precise) .  Mistake:       	White=5     	Black=1      Inaccurate:     	White=2     	Black=6      OK:         	White=10    	Black=14     Best:        	White=1     	Black=1      Strong:       	White=1     	Black=2} 1/2-1/2

[Event "Polish Ekstraliga 2024"]
[Site "Walbrzych"]
[Date "2024.10.07"]
[Round "1.28"]
[White "Heberla, Bartlomiej"]
[Black "Kyc, Jerzy"]
[Result "1-0"]
[ECO "B90"]
[WhiteElo "2501"]
[BlackElo "2253"]
[Annotator "TA"]
[PlyCount "63"]
[EventDate "2024.10.05"]
[EventType "team-tourn"]
[EventCountry "POL"]
[SourceTitle "playchess.com"]
[Source "ChessBase"]
[SourceQuality "1"]
[WhiteTeam "Legnica"]
[BlackTeam "Sedziszow Malopolski"]
[TimeControl "40/5400+30:1800+30"]

{[%evp 27,63,27,31,17,23,30,41,37,256,203,238,179,252,265,241,217,260,265,260,224,320,256,683,679,708,710,681,696,724,718,704,716,1940,2066,2416,1824,29987,1908]} 1. e4 {[%emt 0:00:02]} c5 {[%emt 0:00:07]} 2. Nf3 {[%emt 0:00:05]} d6 {[%emt 0:00:05]} 3. d4 {[%emt 0:00:05]} cxd4 {[%emt 0:00:04]} 4. Nxd4 {[%emt 0:00:06]} Nf6 {[%emt 0:00:06]} 5. Nc3 {[%emt 0:00:05]} a6 {[%emt 0:00:05]} 6. Be3 {[%emt 0:00:08]} e5 {[%emt 0:05:17]} 7. Nb3 {[%emt 0:00:21]} Be7 {[%emt 0:00:31]} 8. f3 {[%emt 0:00:09]} Be6 {[%emt 0:00:16]} 9. Qd2 {[%emt 0:00:13]} O-O {[%emt 0:00:48]} 10. O-O-O {[%emt 0:00:11]} Nbd7 {[%emt 0:03:00]} 11. g4 {[%emt 0:00:15][%cal Bg2g4,Bg4g5][%mdl 32]} b5 {[%emt 0:00:36][%cal Bb7b5,Bb5b4][%mdl 32]} 12. g5 {[%emt 0:00:07]} b4 {[%emt 0:00:03]} 13. Ne2 {[%emt 0:00:14]} Ne8 {[%emt 0:04:25]} 14. f4 {[%emt 0:00:15][%cal Bf3f4,Bf4f5][%mdl 32]} a5 {[%emt 0:03:16]} 15. f5 {[%emt 0:00:08]} Bxb3 {[%emt 0:00:19]} 16. cxb3 {[%emt 0:00:07] aiming for Kb1.} a4 {[%emt 0:00:12]} 17. Kb1 {[%emt 0:00:04] And now bxa4 would win. Active counter play! White is slightly better.} (17. Qxb4 $2 d5 (17... Bxg5 18. Bxg5 Qxg5+ 19. Kb1 $17) 18. Qb5 d4 $19 (18... Bxg5 $2 19. Bxg5 Qxg5+ 20. Kb1 $19)) 17... Nc7 $2 {[%emt 0:02:05]} (17... axb3 $1 $14 18. axb3 Qa5) 18. Nc1 {[%emt 0:03:08]} (18. Qxb4 d5 19. Qc3 axb3 $16 (19... dxe4 $2 20. bxa4 Na6 21. Ng3 $18)) 18... d5 {[%emt 0:02:34]} 19. f6 {[%emt 0:25:37]} gxf6 {[%emt 0:15:54]} (19... d4 $142 20. fxe7 Qxe7) 20. exd5 $18 {[%emt 0:00:08] Strongly threatening d6.} Bc5 {[%emt 0:02:07]} 21. Bh3 {[%emt 0:24:30][%cal Bf1h3,Bh3f5,Bf5h7,Bh7d3][%mdl 32]} Bxe3 {[%emt 0:32:24]} 22. Qxe3 {[%emt 0:00:10]} Kh8 {[%emt 0:08:51]} 23. Rhf1 {[%emt 0:02:18]} Nb5 {[%emt 0:05:37]} (23... fxg5 $142 24. bxa4 Ne8) 24. gxf6 $40 {[%emt 0:18:10][%mdl 128] Black must now prevent Qh6. Black is in trouble. Black is weak on the light squares} a3 $2 {[%emt 0:03:08]} (24... Nd6 25. bxa4 Rg8) 25. Qh6 {[%emt 0:06:14]} Rg8 {[%emt 0:00:08] [#] Prevents Qg7+} 26. Bf5 $1 {[%emt 0:00:26][%csl Gf5][%cal Rh6h7]} Nxf6 {[%emt 0:09:38] [#]} 27. Bxh7 $1 {[%emt 0:01:19][%mdl 512] White wants to mate with Bg6+.} Ng4 {[%emt 0:01:17]} (27... Rg7 28. Bd3+) 28. Qh3 {[%emt 0:00:21] Threatening mate with Bc2+.} (28. Bxg8+ $2 {too greedy.} Nxh6 29. Bxf7 Nxf7 $19) 28... Qg5 {[%emt 0:00:57]} 29. Bd3+ {[%emt 0:02:44]} Nh6 {[%emt 0:00:15]} 30. Rf5 {[%emt 0:03:47]} Qg7 {[%emt 0:00:23] [#]} 31. Rg1 $3 {[%emt 0:03:52][%mdl 512]} axb2 {[%emt 0:00:26]} (31... Ra6 32. Rxg7) 32. Kxb2 {[%emt 0:02:38] Black did not feel at home in the position after the opening.   Weighted Error Value: White=0.22 (precise) /Black=1.06.  Loses game:     	---       	Black=1      Mistake:       	---       	Black=3      OK:         	White=1     	Black=5      Best:        	White=1     	---} (32. Rxg7 $142 Kxg7 33. Rg5+ (33. Bxb5 bxc1=Q+ 34. Kxc1 Nxf5 $18) 33... Kf6 34. Qxh6+ Rg6 35. Bxg6 (35. Rxg6+ fxg6 36. Qxg6+ Ke7 37. Bxb5 bxc1=Q+ 38. Kxc1 Rc8+ 39. Kb2 Rd8 40. Qg5+ Kf7) 35... bxc1=Q+ 36. Kxc1 Ke7 37. Bh5 (37. Rxe5+ Kd6 38. Qf4 Rc8+ 39. Kb2 Kc7 40. Qxb4 Kb6 41. d6 Rc2+ 42. Bxc2 Kc6)) 1-0

[Event "Polish Ekstraliga 2024"]
[Site "Walbrzych"]
[Date "2024.10.07"]
[Round "1.29"]
[White "Sendera, Jaroslaw"]
[Black "Bobras, Piotr"]
[Result "1/2-1/2"]
[ECO "B30"]
[WhiteElo "2219"]
[BlackElo "2428"]
[Annotator "RC"]
[PlyCount "38"]
[EventDate "2024.10.05"]
[EventType "team-tourn"]
[EventCountry "POL"]
[SourceTitle "playchess.com"]
[Source "ChessBase"]
[SourceQuality "1"]
[WhiteTeam "Sedziszow Malopolski"]
[BlackTeam "Legnica"]
[TimeControl "40/5400+30:1800+30"]

1. e4 {[%emt 0:00:10]} c5 {[%emt 0:00:13]} 2. Nf3 {[%emt 0:00:11]} Nc6 {[%emt 0:00:13]} 3. Bb5 {[%emt 0:00:22]} Nf6 {[%emt 0:03:21]} 4. Nc3 {[%emt 0:05:11]} Qc7 {[%emt 0:03:01]} 5. d3 {[%emt 0:04:43]} d6 {[%emt 0:21:11]} 6. h3 {[%emt 0:16:59]} e6 {[%emt 0:03:03]} 7. O-O {[%emt 0:17:13]} Be7 {[%emt 0:01:30]} 8. Bf4 {[%emt 0:15:39]} Bd7 {[%emt 0:05:29]} 9. Re1 {[%emt 0:05:34]} a6 {[%emt 0:12:31]} 10. Bxc6 {[%emt 0:04:52]} Bxc6 {[%emt 0:00:13]} 11. e5 {[%emt 0:07:28]} Nd7 {[%emt 0:01:07]} 12. exd6 {[%emt 0:03:54]} Bxd6 {[%emt 0:00:14]} 13. Bxd6 {[%emt 0:00:35]} Qxd6 {[%emt 0:00:03]} 14. Ne4 {[%emt 0:01:37]} Qf4 {[%emt 0:10:04]} 15. Qd2 {[%emt 0:04:55]} Qxd2 {[%emt 0:00:21]} 16. Nexd2 {[%emt 0:00:58]} Ke7 {[%emt 0:11:40]} 17. Ne5 {[%emt 0:00:41]} Rac8 {[%emt 0:11:40]} 18. Nxd7 {[%emt 0:02:36]} Bxd7 {[%emt 0:00:57]} 19. a4 {[%emt 0:00:15]} Rhd8 {[%emt 0:03:16]} 1/2-1/2

[Event "Polish Ekstraliga 2024"]
[Site "Walbrzych"]
[Date "2024.10.08"]
[Round "2.1"]
[White "Volokitin, Andrei"]
[Black "Mendonca, Leon Luke"]
[Result "1/2-1/2"]
[ECO "C11"]
[WhiteElo "2648"]
[BlackElo "2622"]
[Annotator "TA"]
[PlyCount "63"]
[EventDate "2024.10.05"]
[EventType "team-tourn"]
[EventCountry "POL"]
[SourceTitle "playchess.com"]
[Source "ChessBase"]
[SourceQuality "1"]
[WhiteTeam "Pegow"]
[BlackTeam "Bydgoszcz"]
[TimeControl "40/5400+30:1800+30"]

{[%evp 16,63,19,27,20,0,0,0,0,0,0,2,18,21,33,27,28,20,38,14,2,18,1,0,0,0,0,0,0,0,0,0,1317,-1101,-1066,-1122,0,0,0,0,0,0,0,0,0,0,0,0,0,0]} 1. e4 {[%emt 0:00:03][%cal Be2e4,Be4e5][%mdl 32]} e6 {[%emt 0:00:57]} 2. d4 {[%emt 0:00:17]} d5 {[%emt 0:00:07]} 3. Nc3 {[%emt 0:00:22]} Nf6 {[%emt 0:00:06]} 4. e5 {[%emt 0:00:58]} Nfd7 {[%emt 0:00:07]} 5. f4 {[%emt 0:00:03]} c5 {[%emt 0:00:07]} 6. Nf3 {[%emt 0:00:04]} Nc6 {[%emt 0:00:06]} 7. Be3 {[%emt 0:00:04]} a6 {[%emt 0:00:43]} 8. Qd2 {[%emt 0:02:46]} b5 {[%emt 0:00:29]} 9. a3 {[%emt 0:01:12]} Qa5 {[%emt 0:02:59]} 10. dxc5 {[%emt 0:02:07]} Bxc5 {[%emt 0:18:38]} 11. Bxc5 {[%emt 0:01:12]} Nxc5 {[%emt 0:00:06]} 12. Nd4 {[%emt 0:00:12]} Nxd4 {[%emt 0:02:03]} 13. Qxd4 {[%emt 0:01:20]} Ne4 {[%emt 0:01:14]} 14. b4 {[%emt 0:36:30]} Qc7 {[%emt 0:00:19]} 15. Nxe4 {[%emt 0:00:07]} dxe4 {[%emt 0:00:06]} 16. c4 {[%emt 0:00:53]} Bd7 {[%emt 0:02:29]} 17. Qxe4 {[%emt 0:19:04]} O-O {[%emt 0:04:51]} 18. Bd3 $36 {[%emt 0:04:57][%csl Gd3][%cal Re4h7][%mdl 2048] Black is under pressure.} g6 {[%emt 0:00:06]} 19. c5 {[%emt 0:00:05]} Bc6 {[%emt 0:02:19]} 20. Qe2 {[%emt 0:00:38]} Rfd8 {[%emt 0:32:22]} 21. Be4 {[%emt 0:03:58]} a5 {[%emt 0:09:29] ...axb4 is the strong threat.} 22. O-O {[%emt 0:00:25]} axb4 {[%emt 0:02:47]} 23. axb4 {[%emt 0:00:07]} Ra6 {[%mdl 8192] [#]} 24. Ra4 $4 {[%mdl 8192]} Rxa4 $19 {[%emt 0:00:39]} 25. Rb1 {[#]} Ra1 $2 26. Rxa1 $11 {[%emt 0:01:03] Threatens to win with Bxc6. The position is equal.} Rd4 {[%emt 0:00:37][%csl LRb4,LRe4]} 27. Bxc6 {[%emt 0:03:31]} Qxc6 {[%emt 0:00:01]} 28. Rc1 {[%emt 0:09:19]} Rxb4 {[%emt 0:05:03]} 29. Qd2 {[%emt 0:00:31]} Ra4 {[%emt 0:02:16]} 30. Qd8+ {[%emt 0:06:06]} Kg7 {[%emt 0:00:01]} 31. Qf6+ {[%emt 0:00:11]} Kg8 {[%emt 0:00:16] ...Qd5 would now be deadly.} 32. Qd8+ {[%emt 0:01:24] Weighted Error Value: White=0.33/Black=0.31.  Loses game:     	---       	Black=1      Missed win:     	White=1     	---        OK:         	White=9     	Black=10     Best:        	White=1     	Black=3} 1/2-1/2

[Event "Polish Ekstraliga 2024"]
[Site "Walbrzych"]
[Date "2024.10.08"]
[Round "2.2"]
[White "Wojtaszek, Radoslaw"]
[Black "Lagarde, Maxime"]
[Result "1/2-1/2"]
[ECO "D78"]
[WhiteElo "2673"]
[BlackElo "2595"]
[Annotator "TA"]
[PlyCount "63"]
[EventDate "2024.10.05"]
[EventType "team-tourn"]
[EventCountry "POL"]
[SourceTitle "playchess.com"]
[Source "ChessBase"]
[SourceQuality "1"]
[WhiteTeam "Bydgoszcz"]
[BlackTeam "Pegow"]
[TimeControl "40/5400+30:1800+30"]

{[%evp 15,63,0,0,0,18,21,14,17,12,12,33,20,25,22,17,32,16,26,27,15,12,29,9,12,14,16,24,6,12,11,6,3,6,8,34,46,49,36,31,0,11,0,15,0,0,0,12,0,0,0]} 1. d4 {[%emt 0:00:02]} Nf6 {[%emt 0:00:04]} 2. c4 {[%emt 0:00:04]} g6 {[%emt 0:00:02]} 3. g3 {[%emt 0:00:13]} c6 {[%emt 0:00:19]} 4. Nf3 {[%emt 0:00:22]} Bg7 {[%emt 0:00:23]} 5. Bg2 {[%emt 0:00:07]} O-O {[%emt 0:00:33]} 6. O-O {[%emt 0:00:10]} d5 {[%emt 0:00:08]} 7. Qb3 {[%emt 0:00:11]} Qb6 {[%emt 0:00:44]} 8. Nc3 {[%emt 0:00:15]} Rd8 {[%emt 0:00:15]} 9. Bd2 {[%emt 0:00:26][%cal Bc1d2,Bd2b4,Bb4e7,Be7g5][%mdl 32]} Be6 {[%emt 0:00:31]} 10. Na4 {[%emt 0:04:02]} Qxb3 {[%emt 0:00:11]} 11. axb3 {[%emt 0:00:04]} Nbd7 {[%emt 0:00:05] Repels Nb6} 12. Rfc1 {[%emt 0:02:39]} Ne4 {[%emt 0:00:15]} 13. Bb4 {[%emt 0:03:50]} a5 {[%emt 0:05:17]} 14. Bxe7 {[%emt 0:12:55]} Re8 {[%emt 0:00:04]} 15. Bg5 {[%emt 0:00:10]} b5 {[%emt 0:00:05]} 16. cxb5 {[%emt 0:01:54]} cxb5 {[%emt 0:00:04]} 17. Nc3 {[%emt 0:00:08]} Nxg5 {[%emt 0:00:04]} 18. Nxg5 {[%emt 0:02:06]} Bxd4 {[%emt 0:00:04]} 19. e3 {[%emt 0:10:39]} (19. Nxd5 Bxb2 20. Nc7 Rac8 21. Nxe8 Rxc1+ (21... Bxc1 22. Nxe6 Rxe8 23. Rxc1 $16) 22. Rxc1 Bxc1 23. Nxe6 fxe6) 19... Bf6 {[%emt 0:00:30]} 20. Nxe6 {[%emt 0:00:30]} fxe6 21. Rc2 (21. Nxb5 Bxb2 22. Nc7 Bxc1 23. Nxa8 Rxa8 $18) 21... Rec8 {[%emt 0:55:34]} 22. Rac1 {[%emt 0:03:02][%cal Oc3d5,Ba1c1,Bc1c3,Bc3c6][%mdl 32] Black should prevent Nxd5!} Bxc3 {[%emt 0:01:11]} 23. Rxc3 {[%emt 0:00:07]} Rxc3 {[%emt 0:00:18]} 24. Rxc3 $11 {[%emt 0:00:08][%mdl 4096] Endgame. KRB-KRN} Ra7 {[%emt 0:02:26] Inhibits Rc7.} 25. Bh3 {[%emt 0:15:33]} Kf7 {[%emt 0:00:13]} 26. Rc6 {[%emt 0:00:07]} Nf8 {[%emt 0:01:04]} 27. Kf1 {[%emt 0:00:09]} Ke7 {[%emt 0:00:39] The position is equal.} 28. Ke1 {[%emt 0:01:18]} b4 {[%emt 0:02:30]} 29. Bf1 {[%emt 0:04:12]} Nd7 {[%emt 0:03:55]} 30. Bh3 {[%emt 0:04:15]} Nf8 {[%emt 0:00:18]} 31. Bf1 {[%emt 0:05:18]} Nd7 {[%emt 0:00:05]} 32. Bh3 {[%emt 0:05:48] Weighted Error Value: White=0.06 (flawless) /Black=0.04 (flawless) .  Inaccurate:     	---       	Black=1      OK:         	White=11    	Black=12     Best:        	White=1     	Black=2} 1/2-1/2